[Event "Bangabandhu Premier Div League 2022"]
[Site "Dhaka"]
[Date "2022.12.06"]
[Round "7.8"]
[White "Jamal Uddin"]
[Black "Mohammad Nubairshah Shaikh"]
[Result "0-1"]
[ECO "E67"]
[WhiteElo "2092"]
[BlackElo "2439"]
[Annotator "TA"]
[PlyCount "122"]
[EventDate "2022.12.01"]
[EventCountry "BAN"]
[SourceTitle "playchess.com"]
[Source "ChessBase"]
[SourceQuality "1"]
[TimeControl "40/5400+30:1800+30"]

{[%evp 15,122,0,0,0,0,-34,0,0,0,-30,-28,-27,-31,-42,-43,-42,-46,-50,-44,-107,-106,-106,-83,-133,-83,-114,-92,-95,-102,-164,-166,-152,-124,-125,-116,-131,-106,-136,-109,-164,-145,-230,-180,-158,-99,-127,-110,-177,-97,-143,-140,-133,-124,-116,-104,-143,-144,-144,-131,-128,-121,-144,-137,-139,-86,-210,-222,-260,-123,-243,-225,-307,-303,-393,-395,-373,-379,-572,-553,-525,-549,-680,-664,-12833,-12835,-12835,-12835,-12835,-12830,-12837,-12838,-12838,-12839,-12838,-12839,-12839,-12838,-12841,-12841,-12841,-12842,-12844,-12844,-12844,-12845,-12845,-12845,-12845,-12845]} 1. Nf3 {[%emt 0:08:13]} d6 {[%emt 0:00:07]} 2. d4 {[%emt 0:00:33]} g6 {[%emt 0:01:08]} 3. c4 {[%emt 0:01:10]} Bg7 {[%emt 0:00:03]} 4. g3 {[%emt 0:01:38]} e5 {[%emt 0:02:00]} 5. Nc3 {[%emt 0:01:27]} Nd7 {[%emt 0:02:39]} 6. Bg2 {[%emt 0:01:35]} Ngf6 {[%emt 1:27:33]} 7. O-O {[%emt 0:01:34]} O-O {[%emt 0:00:00]} 8. e3 {[%emt 0:03:24]} c6 {[%emt 0:01:00]} 9. dxe5 {[%emt 0:04:05] E67: King's Indian: Fianchetto: 6...Nbd7.} dxe5 {[%emt 0:00:00]} 10. b3 {[%emt 0:01:07]} Qe7 {[%emt 0:00:00]} 11. Qc2 {[%emt 0:01:16] The position is equal.} Re8 {[%emt 0:00:00]} 12. a4 {[%emt 0:02:11] [#]} Nc5 $146 {[%emt 0:00:00]} ({Predecessor:} 12... a5 13. Ba3 Nc5 14. Nd2 Nfd7 15. Nce4 f5 16. Nxc5 Nxc5 17. b4 Ne6 18. bxa5 Qc7 {1-0 (51) Mehl,R (2017)-Ruesch,H (1990) Mecklenburg VP 2011}) 13. Ba3 {[%emt 0:02:45]} Bf5 {[%emt 0:00:00]} 14. Qa2 {[%emt 0:01:44]} a5 {[%emt 0:00:00]} 15. Rad1 {[%emt 0:02:20]} Bf8 {[%emt 0:00:00]} 16. h3 {[%emt 0:04:32]} Rad8 {[%emt 0:00:00]} 17. Kh2 {[%emt 0:05:52]} ({Better is} 17. Rxd8 $15 Rxd8 18. Nd2) 17... Bd3 $17 {[%emt 0:04:30]} 18. Rfe1 {[%emt 0:01:07][%cal Oe3e4]} Qc7 {[%emt 0:00:00]} 19. Bf1 {[%emt 0:06:12]} (19. e4 $142) 19... Bf5 {[%emt 0:01:00]} (19... e4 $142 20. Nd4 b6) 20. Nh4 {[%emt 0:06:48]} Bc8 {[%emt 0:00:30] Black is more active.} 21. Rxd8 {[%emt 0:07:03]} Rxd8 {[%emt 0:00:00]} 22. Rd1 {[%emt 0:00:22]} (22. Nf3 $17 {is a better defense.}) 22... Rxd1 $19 {[%emt 0:00:00]} 23. Nxd1 {[%emt 0:00:51]} Qb6 {[%emt 0:00:00]} 24. Bxc5 {[%emt 0:00:49]} Bxc5 {[%emt 0:00:00]} 25. Qc2 {[%emt 0:01:09]} Bb4 {[%emt 0:00:00]} 26. Bd3 {[%emt 0:33:43]} Nd7 {[%emt 0:03:00]} 27. f4 {[%emt 0:00:30]} (27. Nc3 $17) 27... Be7 {[%emt 0:00:30]} 28. f5 {[%emt 0:00:00]} (28. Nf3 $17) 28... Bxh4 {[%emt 0:00:00]} 29. gxh4 {[%emt 0:00:00][%cal Rf5g6]} Qd8 {[%emt 0:00:00]} (29... Nc5 30. fxg6 hxg6 31. Bxg6 $17) (29... Qc7 $142 {...e4+ is the strong threat.} 30. Kh1 Qd6) 30. fxg6 $17 {[%emt 0:00:00]} hxg6 {[%emt 0:00:00]} ({Worse is} 30... fxg6 31. h5) 31. Qf2 {[%emt 0:02:00]} ({Not} 31. Bxg6 $2 fxg6 32. Qxg6+ Kf8 33. Qh6+ Kf7 34. Qh7+ Ke6 $19) (31. h5 $17 {was called for.}) 31... Kg7 {[%emt 0:00:00]} (31... Nc5 $19 32. Bc2 e4) 32. Bc2 {[%emt 0:00:00]} (32. Qg3 $142) 32... Nf6 {[%emt 0:02:30]} 33. Nc3 {[%emt 0:00:00]} Qd7 {[%emt 0:00:00]} 34. Qg2 {[%emt 0:00:00]} Qe7 {[%emt 0:00:00]} 35. Ne2 {[%emt 0:00:00]} Qc5 {[%emt 0:00:00]} 36. Qf2 {[%emt 0:02:30]} Qa3 {[%emt 0:00:00]} 37. Ng3 {[%emt 0:00:00][%cal Oh4h5]} Qb2 {[%emt 0:00:00][%cal Oc8g4] Against h5} 38. Qg2 {[%emt 0:00:12] [#]} Kf8 $1 {[%emt 0:00:00]} 39. Qd2 {[%emt 0:00:36]} Be6 {[%emt 0:03:30] Against h5} (39... Ke7 $142 40. Nf1 e4) 40. Qf2 {[%emt 0:00:38]} (40. h5 $17 {was worth a try.}) 40... Ke7 $19 {[%emt 0:00:00][%cal Ob7b5]} 41. Qd2 {[%emt 0:30:17] [#]} Ke8 {[%emt 0:31:00]} (41... b5 $1 $19 {[%cal Rb5a4] is more deadly.} 42. axb5 cxb5) 42. Qd1 {[%emt 0:01:17]} (42. Nf1 $17) 42... b5 $1 {[%emt 0:00:00]} 43. axb5 {[%emt 0:00:00]} cxb5 {[%emt 0:00:00]} 44. Qe2 {[%emt 0:00:00]} bxc4 {[%emt 0:00:00]} 45. bxc4 {[%emt 0:00:00] And now Ba4+ would win.} Qb4 {[%emt 0:00:00] Against Ba4+} 46. Bd3 {[%emt 0:00:00]} (46. h5 $142 Nxh5 47. Ne4) 46... a4 {[%emt 0:02:30][%cal Ba5a4,Ba4a3,Ba3b2][%mdl 32] Black is clearly winning.} 47. Qc2 {[%emt 0:02:30]} a3 {[%emt 0:00:00]} 48. h5 {[%emt 0:00:00]} gxh5 {[%emt 0:00:00][%cal Oe5e4] Strongly threatening ...e4!} 49. Nf5 {[%emt 0:00:00]} Bxf5 {[%emt 0:00:00]} 50. Bxf5 {[%emt 0:00:00]} Qb2 {[%emt 0:02:00]} 51. Qxb2 {[%emt 0:00:00]} axb2 {[%emt 0:00:00][%mdl 4096] Endgame KB-KN} 52. Bb1 {[%emt 0:02:30]} Nd7 {[%emt 0:00:00]} 53. Kg3 {[%emt 0:00:00]} Nb6 {[%emt 0:00:00]} 54. c5 {[%emt 0:00:00]} Nc4 {[%emt 0:00:00]} 55. Kh4 {[%emt 0:01:30]} Nxe3 {[%emt 0:00:00]} 56. Kxh5 {[%emt 0:00:00]} f5 {[%emt 0:00:00][%cal Bf7f5,Bf5f4][%mdl 32]} 57. Kg5 {[%emt 0:01:00]} f4 {[%emt 0:00:00]} 58. Kh4 {[%emt 0:00:00]} Kd7 {[%emt 0:00:00]} 59. Be4 {[%emt 0:00:00]} Kc7 {[%emt 0:00:00]} 60. Bb1 {[%emt 0:00:36]} Kc6 {[%emt 0:00:00]} 61. Be4+ {[%emt 0:00:43]} Kxc5 {[%emt 0:00:00] Weighted Error Value: White=0.40/Black=0.13 (very precise)} 0-1

[Event "Bangabandhu Premier Div League 2022"]
[Site "Dhaka"]
[Date "2022.12.06"]
[Round "7.9"]
[White "Mendonca, Leon Luke"]
[Black "Hossain, Enamul"]
[Result "1-0"]
[ECO "A75"]
[WhiteElo "2565"]
[BlackElo "2392"]
[Annotator "TA"]
[PlyCount "113"]
[EventDate "2022.11.30"]
[EventType "team-tourn"]
[EventCountry "BAN"]
[SourceTitle "playchess.com"]
[Source "ChessBase"]
[SourceQuality "1"]
[TimeControl "40/5400+30:1800+30"]

{[%evp 25,113,44,50,45,46,35,66,40,62,60,82,53,61,43,52,51,77,56,59,35,49,52,82,69,89,82,87,73,103,97,125,54,27,37,189,185,168,114,120,115,114,114,127,143,183,221,199,120,170,187,175,137,133,13,106,100,102,71,101,68,83,59,197,189,211,137,149,136,125,0,0,-157,477,434,352,231,1743,1970,1970,1714,29968,29969,29969,29970,29962,29962,5718,5106,29988,29989]} 1. c4 {[%emt 0:01:26]} c5 {[%emt 0:01:17]} 2. Nf3 {[%emt 0:00:44]} g6 {[%emt 0:01:03]} 3. d4 {[%emt 0:00:16][%cal Bd2d4,Bd4d5][%mdl 32]} Nf6 {[%emt 0:02:45]} 4. d5 {[%emt 0:00:48]} Bg7 {[%emt 0:00:20]} 5. Nc3 {[%emt 0:00:10]} d6 {[%emt 0:00:12]} 6. e4 {[%emt 0:00:39]} e6 {[%emt 0:00:25]} 7. Be2 {[%emt 0:02:01]} O-O {[%emt 0:00:53]} 8. O-O {[%emt 0:00:55]} exd5 {[%emt 0:01:24]} 9. cxd5 {[%emt 0:00:55]} a6 {[%emt 0:01:37]} 10. a4 {[%emt 0:00:25]} Bg4 {[%emt 0:00:13]} 11. Bf4 {[%emt 0:02:49]} Bxf3 {[%emt 0:01:24]} 12. Bxf3 {[%emt 0:00:02]} Ne8 {[%emt 0:02:52]} 13. Qd2 {[%emt 0:03:39]} Nd7 {[%emt 0:00:31]} 14. Rfe1 {[%emt 0:08:48] A75: Modern Benoni: Classical: 9...a6 10 a4 Bg4.} Rb8 {[%emt 0:03:59]} 15. Be2 {[%emt 0:10:21] [#]} Qc7 $146 {[%emt 0:02:21]} ({Predecessor:} 15... Qe7 16. Bf1 Nc7 17. a5 Ne5 18. Bh6 b5 19. Bxg7 Kxg7 20. f4 Nc4 21. Qc2 Qf6 {0-1 (52) Van Hoolandt,P (2171)-Nass,E (2248) St Chely d'Aubrac 2010}) 16. Bg5 {[%emt 0:04:26] White is more active. White is slightly better.} Bf6 {[%emt 0:02:48] Inhibits Be7.} 17. Be3 {[%emt 0:09:08]} Bg7 {[%emt 0:00:43]} 18. h3 {[%emt 0:13:09]} Nef6 {[%emt 0:01:36]} 19. Qc2 {[%emt 0:09:33]} Rfe8 {[%emt 0:05:14]} 20. a5 {[%emt 0:02:21]} Re7 {[%emt 0:05:45]} 21. Bf1 {[%emt 0:06:02]} Rbe8 {[%emt 0:05:24][%cal Rf6e4]} 22. f3 {[%emt 0:03:36]} Nh5 {[%emt 0:08:44][%cal Of7f5]} 23. g4 {[%emt 0:04:50] Against f5} Nhf6 {[%emt 0:01:05]} 24. Kg2 {[%emt 0:07:44]} c4 {[%emt 0:04:31]} 25. Ra4 {[%emt 0:05:09]} Ne5 {[%emt 0:01:39]} 26. Nd1 {[%emt 0:01:32]} Rc8 {[%emt 0:12:36]} 27. Nf2 {[%emt 0:00:30]} Nfd7 {[%emt 0:02:33]} 28. Rc1 {[%emt 0:00:31]} (28. f4 $16) 28... Nc5 $14 {[%emt 0:01:03]} 29. Bxc5 {[%emt 0:00:43]} dxc5 {[%emt 0:08:52]} ({Better is} 29... Qxc5 $14 30. f4 (30. Bxc4 $2 Qe3 $19) 30... Qe3 $1 31. fxe5 Bxe5) 30. f4 $1 $36 {[%emt 0:00:08][%mdl 2048] White has strong initiative.} (30. Bxc4 $6 g5 $14) 30... Nd7 {[%emt 0:07:23]} 31. e5 {[%emt 0:00:07]} (31. Qxc4 Qxf4 32. Nd3 Qd2+ 33. Kh1 Bd4 $17) (31. Qd2 $18) 31... b5 $16 {[%emt 0:00:15]} 32. axb6 {[%emt 0:02:03]} Nxb6 {[%emt 0:00:12]} 33. Bxc4 {[%emt 0:00:55] Black must now prevent d6.} (33. Rxa6 $2 Nxd5 34. Qe4 Nxf4+ $1 {[%mdl 512]} 35. Qxf4 Qb7+ 36. Qf3 Qxa6 $19) 33... Nxa4 {[%emt 0:01:11]} 34. Qxa4 {[%emt 0:00:06]} Bxe5 {[%emt 0:01:03]} 35. fxe5 {[%emt 0:00:05]} Qxe5 {[%emt 0:00:19]} 36. Rc3 {[%emt 0:01:04]} (36. Qxa6 $18 Rd8 37. Qa5) 36... Rb8 {[%emt 0:04:00]} 37. Qc2 $1 {[%emt 0:00:31]} (37. Qxa6 Rxb2 38. Rf3 Rd2 $11) 37... Rb6 {[%emt 0:01:09]} 38. b3 {[%emt 0:00:43]} Rf6 {[%emt 0:07:00][%cal Of6f2]} 39. Rd3 {[%emt 0:00:14]} (39. Rg3 $16) 39... Qe1 {[%emt 0:01:44]} (39... a5 $1 $11) 40. Rf3 {[%emt 0:00:47]} Rxf3 {[%emt 0:01:30]} 41. Kxf3 {[%emt 0:30:03] Dancing on a razor blade.} Qe3+ {[%emt 0:02:05]} 42. Kg2 {[%emt 0:00:00] And now d6 would win.} Qf4 {[%emt 0:00:15] Against d6} 43. Qd1 $1 {[%emt 0:00:00]} ({Of course not} 43. Bxa6 Re3 $11) (43. Nd3 $6 Qe4+ 44. Kg1 (44. Kh2 Qf3 $15) 44... Qd4+ 45. Kg2 Qe4+ 46. Kg1 (46. Kh2 Qf3 $11) 46... Qd4+ 47. Kg2 Qe4+ $11) 43... a5 {[%emt 0:10:53]} ({Less strong is} 43... Re3 44. d6 Qg3+ 45. Kf1 $18) (43... Kf8 $1 $14) 44. Qf3 $18 {[%emt 0:00:00]} Qe5 {[%emt 0:05:51]} 45. Qg3 {[%emt 0:00:00]} Qxg3+ {[%emt 0:03:56]} 46. Kxg3 {[%emt 0:00:00] aiming for d6.} Ra7 {[%emt 0:00:07]} 47. Bb5 {[%emt 0:00:57] Against a4} (47. Nd1 $16) 47... Rb7 $11 {[%emt 0:00:17]} 48. Ba4 {[%emt 0:00:27]} (48. Bc4 $11 Kf8 49. Nd3) 48... Rb4 $2 {[%emt 0:02:07]} (48... c4 $1 $17 {[%cal Rc4b3] keeps the pressure on.} 49. bxc4 Rb4) 49. d6 $1 $18 {[%emt 0:00:12][%cal Bd5d6,Bd6d7][%mdl 32]} Rd4 {[%emt 0:00:11]} 50. d7 {[%emt 0:00:04]} f5 {[%emt 0:00:06] Inhibits Ne4.} (50... c4) 51. gxf5 {[%emt 0:00:29]} gxf5 {[%emt 0:00:06] [#]} 52. Bb5 $1 {[%emt 0:00:42] Nd3 is the strong threat.} c4 {[%emt 0:10:01] Prevents Nd3.} 53. bxc4 {[%emt 0:00:24][%cal Bb3c4,Bc4c5,Bc5c6][%mdl 32]} ({Not} 53. Bxc4+ Kf8 $16) 53... Kf8 {[%emt 0:00:22]} 54. c5 {[%emt 0:00:08]} Ke7 {[%emt 0:00:27]} 55. c6 {[%emt 0:00:17]} Kd8 {[%emt 0:00:11] [#]} 56. Nd3 $1 {[%emt 0:00:17] White threatens Nc5 and mate.} a4 {[%emt 0:01:02]} 57. Nc5 {[%emt 0:00:31] Weighted Error Value: White=0.25 (precise) /Black=0.52} 1-0

[Event "Bangabandhu Premier Div League 2022"]
[Site "Dhaka"]
[Date "2022.12.06"]
[Round "7.10"]
[White "Mohammad Fahad, Rahman"]
[Black "Iniyan, P."]
[Result "0-1"]
[ECO "D37"]
[WhiteElo "2380"]
[BlackElo "2534"]
[Annotator "TA"]
[PlyCount "120"]
[EventDate "2022.11.30"]
[EventType "team-tourn"]
[EventCountry "BAN"]
[SourceTitle "playchess.com"]
[Source "ChessBase"]
[SourceQuality "1"]
[TimeControl "40/5400+30:1800+30"]

{[%evp 9,120,25,23,23,33,4,6,0,22,0,29,21,29,27,16,25,25,35,30,-5,11,22,13,-47,-49,-56,-31,-36,-28,-30,-37,-46,-12,-56,-12,-72,-90,-80,-32,-79,-82,-177,-185,-228,-189,-180,-175,-265,-202,-403,-235,-233,-224,-245,-258,-269,-254,-248,-250,-251,-236,-230,-229,-226,-226,-275,-276,-280,-272,-292,-281,-306,-307,-452,-435,-409,-308,-403,-401,-386,-380,-482,-482,-425,-426,-705,-697,-816,-670,-1168,-1135,-1083,-810,-626,-626,-29957,-29961,-29952,-29957,-29966,-29969,-29969,-29970,-29970,-29971,-29970,-29971,-29975,-29976,-29976,-29977,-29972,-29975]} 1. d4 {[%emt 0:00:09]} Nf6 {[%emt 0:02:12]} 2. c4 {[%emt 0:00:05]} e6 {[%emt 0:00:11]} 3. Nf3 {[%emt 0:00:08]} d5 {[%emt 0:00:04]} 4. Nc3 {[%emt 0:00:08]} a6 {[%emt 0:00:05]} 5. cxd5 {[%emt 0:00:44]} exd5 {[%emt 0:00:09]} 6. Bg5 {[%emt 0:00:05] D37: Queen's Gambit Declined: 5 Bf4.} Be6 {[%emt 0:00:12]} 7. Qb3 {[%emt 0:00:09]} Nbd7 {[%emt 0:00:43]} 8. e3 {[%emt 0:00:09] The position is equal.} Rb8 {[%emt 0:13:28]} 9. Bd3 {[%emt 0:00:21]} Bd6 {[%emt 0:04:02]} (9... c5 $5 {[%cal Rc5c4]} 10. Qc2 Be7 $14) 10. Qc2 {[%emt 0:00:18]} c6 {[%emt 0:03:10] [#]} 11. h3 $146 {[%emt 0:00:12]} ({Predecessor:} 11. Rb1 Qc7 12. b4 O-O 13. Bh4 Bg4 14. Ng5 h6 15. Nh7 Nxh7 16. Bxh7+ Kh8 17. Bd3 {0-1 (36) Mamedyarov,S (2759)-Van Foreest,J (2678) Zagreb 2022}) 11... Qc7 {[%emt 0:00:47]} 12. Ne2 {[%emt 0:00:08]} Rc8 {[%emt 0:13:25]} 13. O-O {[%emt 0:01:56]} Nh5 {[%emt 0:02:53] Prevents Nf4.} 14. Qd2 {[%emt 0:10:53]} (14. Bxh7 g6 15. Bxg6 fxg6 16. Qxg6+ Bf7 $15) (14. Rae1 $5 {[%cal Re2f4]}) 14... f6 {[%emt 0:07:19]} 15. g4 {[%emt 0:03:50]} Bf7 {[%emt 0:04:01]} 16. Bf4 {[%emt 0:05:27]} ({White should try} 16. Bh4 $11 g5 17. gxh5 Bxh5 18. Kg2 (18. Nxg5 fxg5 19. Bxg5 Bf3 $15) 18... Bxf3+ 19. Kxf3 gxh4 20. Rg1) 16... Nxf4 $15 {[%emt 0:00:35]} 17. exf4 {[%emt 0:00:11]} O-O {[%emt 0:02:24]} 18. Nh4 {[%emt 0:01:55]} Rfe8 {[%emt 0:03:49]} 19. Nf5 {[%emt 0:02:02]} Bf8 {[%emt 0:00:34]} 20. Rac1 {[%emt 0:02:27]} Qb6 {[%emt 0:04:22]} 21. Bb1 {[%emt 0:02:01]} c5 {[%emt 0:03:17]} 22. b3 {[%emt 0:08:13]} (22. Rfd1 $11 {keeps the balance.}) 22... c4 $17 {[%emt 0:12:01]} 23. Ne3 {[%emt 0:00:30]} g6 {[%emt 0:00:30] Black is more active.} (23... cxb3 $6 24. Qd3 g6 25. Rxc8 Rxc8 26. Qxb3 $11) (23... Qc7 $17) 24. bxc4 {[%emt 0:00:30]} (24. h4 $15 {was preferrable.}) 24... dxc4 {[%emt 0:00:30] White is now going downhill.} 25. a4 (25. f5 $17) 25... Bb4 $19 26. Qc2 {[%emt 0:11:44]} Qa5 {[%emt 0:04:15]} 27. d5 {[%emt 0:05:38]} Nb6 $36 {[%emt 0:03:45][%mdl 2048] Black is in control.} (27... Bxd5 28. Rfd1 Nb6 29. Nxd5 Nxd5 30. f5 $17) 28. Rfd1 {[%emt 0:09:31] Prevents Bd2.} (28. Nc3 $142) 28... Qxa4 {[%emt 0:04:32]} (28... Nxa4 29. Nxc4 Rxc4 30. Qxc4 $17) (28... Bxd5 29. Nxd5 Nxd5 30. f5 $17) 29. Ba2 $2 {[%emt 0:08:49]} (29. d6 Rcd8 30. Qb2) 29... Qxc2 {[%emt 0:03:03]} (29... Qa3 $142 30. d6 Bxd6) 30. Rxc2 {[%emt 0:00:01]} Bc5 {[%emt 0:01:21]} 31. Nxc4 {[%emt 0:11:00]} Nxd5 {[%emt 0:00:58]} (31... Bxd5 32. Nxb6 Bxa2 33. Nxc8 $18) 32. Rxd5 {[%emt 0:07:20]} Bxd5 {[%emt 0:01:00] This pair of bishops is nice.} 33. Nd6 {[%emt 0:00:06] Against b5} Bxa2 {[%emt 0:01:22]} 34. Nxc8 {[%emt 0:00:03]} Be6 {[%emt 0:02:08]} 35. Rxc5 {[%emt 0:00:27] [#] Strongly threatening Nd6.} Rxc8 {[%emt 0:00:07][%mdl 4096] Endgame KRB-KRN} (35... Bxc8 36. Nc3) 36. Ra5 {[%emt 0:11:20]} Rc4 {[%emt 0:01:39]} 37. f5 {[%emt 0:00:00]} gxf5 {[%emt 0:00:58]} 38. gxf5 {[%emt 0:00:00]} Bd7 {[%emt 0:01:03]} 39. Rd5 {[%emt 0:00:00]} Rc7 {[%emt 0:00:06]} 40. Nd4 {[%emt 0:00:00]} Kf7 {[%emt 0:00:37] Prevents Ne6.} 41. Rd6 {[%emt 0:24:17]} (41. Kf1 {might work better.}) 41... Ke7 {[%emt 0:31:46]} 42. Rb6 {[%emt 0:00:08]} Bc8 {[%emt 0:00:00]} 43. Kh2 {[%emt 0:00:00]} Rc4 {[%emt 0:00:00]} 44. Nb3 {[%emt 0:00:00]} Rf4 {[%emt 0:00:00]} (44... Bxf5 45. Rxb7+ Bd7 46. Ra7 $17) 45. Nc5 {[%emt 0:00:00]} Rxf2+ {[%emt 0:00:00]} ({Weaker is} 45... Bxf5 46. Kg3 Rd4 47. Rxb7+ Kd6 48. Nxa6 $15) 46. Kg3 {[%emt 0:00:00]} Rxf5 {[%emt 0:00:00]} 47. Nxb7 {[%emt 0:00:00]} (47. Ne4 $142) 47... Rd5 {[%emt 0:00:00]} 48. Kf4 {[%emt 0:00:00]} a5 {[%emt 0:00:00][%cal Ba6a5,Ba5a4,Ba4a3,Ba3a2][%mdl 32]} 49. Ke4 {[%emt 0:00:00]} Bxb7 {[%emt 0:00:00]} 50. Rxb7+ {[%emt 0:00:00] KR-KR} Rd7 {[%emt 0:00:00]} 51. Rb6 {[%emt 0:00:00]} Ra7 {[%emt 0:00:00] [#] aiming for ...a4.} 52. Kf5 {[%emt 0:00:00]} a4 {[%emt 0:00:00] Black mates.} 53. Re6+ {[%emt 0:00:00]} Kf7 {[%emt 0:00:00]} 54. Rxf6+ {[%emt 0:00:00]} Kg7 {[%emt 0:00:00]} 55. Re6 {[%emt 0:00:00]} a3 {[%emt 0:00:00]} 56. Re1 {[%emt 0:00:00]} a2 {[%emt 0:00:00]} 57. Ra1 {[%emt 0:00:00]} Kh6 {[%emt 0:00:00]} 58. h4 {[%emt 0:00:00]} Kh5 {[%emt 0:00:00]} 59. Kf4 {[%emt 0:00:00]} Ra4+ {[%emt 0:00:00]} ({But not} 59... Kxh4 60. Rh1#) 60. Kg3 {[%emt 0:00:00]} h6 {[%emt 0:00:00] Weighted Error Value: White=0.60/Black=0.15 (very precise)} ({Inferior is} 60... Rxh4 61. Rxa2 Rg4+ 62. Kf3 $11) 0-1

[Event "Bangabandhu Premier Div League 2022"]
[Site "Dhaka"]
[Date "2022.12.06"]
[Round "7.11"]
[White "Reefat, Bin-Sattar"]
[Black "Narayanan.S.L"]
[Result "0-1"]
[ECO "B20"]
[WhiteElo "2367"]
[BlackElo "2673"]
[Annotator "TA"]
[PlyCount "80"]
[EventDate "2022.11.30"]
[EventType "team-tourn"]
[EventCountry "BAN"]
[SourceTitle "playchess.com"]
[Source "ChessBase"]
[SourceQuality "1"]
[TimeControl "40/5400+30:1800+30"]

{[%evp 9,80,-17,0,0,-3,0,0,0,0,0,0,0,0,-11,0,-34,-25,-44,-35,-66,-45,-65,-78,-80,-68,-116,-110,-129,-99,-120,-97,-106,-42,-111,-120,-106,-120,-121,-56,-153,-153,-154,-152,-130,-41,-28,-24,-21,-3,-10,-9,-9,-17,-29,0,-204,-180,-177,-167,-181,-155,-787,-785,-682,-739,-1716,-1572,-1678,-1658,-2170,-787,-1887,-1727]} 1. e4 {[%emt 0:03:55]} c5 {[%emt 0:00:07]} 2. b3 {[%emt 0:00:40]} d6 {[%emt 0:00:12]} 3. Bb2 {[%emt 0:00:05]} Nf6 {[%emt 0:00:26]} 4. Bb5+ {[%emt 0:00:06]} Nc6 {[%emt 0:04:31]} 5. Qe2 {[%emt 0:17:31]} e5 {[%emt 0:03:42]} 6. f4 {[%emt 0:19:26] B20: Sicilian: Unusual White 2nd moves.} exf4 {[%emt 0:00:15]} 7. Nf3 {[%emt 0:00:10]} Be7 {[%emt 0:00:44]} 8. e5 {[%emt 0:16:51] The position is equal.} dxe5 {[%emt 0:00:09]} 9. Nxe5 {[%emt 0:00:06] [#]} Qc7 $146 {[%emt 0:00:06]} ({Predecessor:} 9... Qd6 10. O-O O-O 11. Bxc6 bxc6 12. Rxf4 Be6 13. Na3 Nd5 14. Rff1 Nb6 15. Nac4 Nxc4 16. Nxc4 Bxc4 17. bxc4 {0-1 (39) Pozueta Alegria,A (2022)-Pardo Simon,D (2321) Granada 2009}) 10. Nxc6 {[%emt 0:07:00]} bxc6 {[%emt 0:00:09]} 11. Be5 $1 {[%emt 0:01:33]} Qd7 {[%emt 0:04:52]} 12. Bxf6 {[%emt 0:01:35][%cal Ob5c6] Threatens to win with Bxc6!} cxb5 {[%emt 0:04:02]} (12... gxf6 13. Bd3 $11) 13. Bxe7 {[%emt 0:00:30]} (13. Bxg7 $2 Rg8 14. Bf6 Bb7 15. Qxe7+ Qxe7+ 16. Bxe7 Kxe7 $17) 13... Qxe7 {[%emt 0:00:20]} 14. Qxe7+ {[%emt 0:04:33]} Kxe7 {[%emt 0:00:14]} 15. O-O {[%emt 0:01:18]} g5 $1 {[%emt 0:14:29]} 16. Nc3 {[%emt 0:00:04]} Rd8 $1 {[%emt 0:00:25]} 17. Rae1+ {[%emt 0:13:19]} (17. d3 $15) 17... Be6 $1 $17 {[%emt 0:11:05]} 18. h4 {[%emt 0:06:58]} h6 {[%emt 0:07:08]} (18... gxh4 19. Re2 $15) 19. hxg5 {[%emt 0:00:04]} hxg5 {[%emt 0:00:05]} (19... Rxd2 20. gxh6 (20. Rxf4 hxg5 21. Rf2 Rxf2 $15) 20... Rh8 21. Rf2 (21. Rxf4 Rxc2 22. Nxb5 Rxh6 $15) (21. Nxb5 Rxh6 22. c4 Rxa2 $11) 21... Rxf2 22. Kxf2 $14) 20. Re5 {[%emt 0:00:19]} f6 {[%emt 0:12:33]} (20... Rxd2 $17 {...b4 is the strong threat.} 21. Rxg5 b4) 21. Re2 {[%emt 0:03:59]} ({White should play} 21. Rxc5 $15 Rac8 22. Rxc8 Bxc8 23. d3) 21... Kf7 $1 {[%emt 0:01:47]} 22. Nxb5 {[%emt 0:00:23]} Bg4 {[%emt 0:00:08]} 23. Ref2 {[%emt 0:00:33]} Rh8 {[%emt 0:00:36]} (23... Kg6 $17) 24. Re1 {[%emt 0:00:53] [#]} (24. d4 $15) 24... Rh7 $1 {[%emt 0:01:16]} 25. Rff1 {[%emt 0:00:28]} Rah8 {[%emt 0:03:06]} 26. d4 {[%emt 0:00:25]} Bd7 {[%emt 0:06:42]} ({Black should try} 26... cxd4 $17 {[%cal Od4d3]} 27. Nxd4 Bc8) 27. Nd6+ $15 {[%emt 0:00:26]} (27. Nxa7 $2 Ra8 28. a4 Rxa7 $19) 27... Kg6 {[%emt 0:00:04]} 28. d5 {[%emt 0:00:22]} (28. dxc5 Bc6 29. Kf2 Rh2 $17) 28... f5 {[%emt 0:09:37]} 29. Nc4 {[%emt 0:00:47]} g4 {[%emt 0:00:24][%cal Bg5g4,Bg4g3][%mdl 32]} 30. Ne5+ {[%emt 0:00:35]} (30. Rxf4 $2 {too greedy.} Kg5 31. Ne5 g3 $19) 30... Kg5 {[%emt 0:00:27]} 31. Kf2 {[%emt 0:00:03]} Be8 {[%emt 0:01:52]} 32. d6 $2 {[%emt 0:00:16]} (32. Rg1 $11) 32... Bh5 {[%emt 0:01:39] ( -> ...g3+)} 33. Rh1 {[%emt 0:00:37]} g3+ {[%emt 0:02:32]} 34. Kf1 {[%emt 0:01:03] [#]} Rd8 $1 {[%emt 0:01:53]} ({Much less strong is} 34... Be2+ 35. Kxe2 Rxh1 36. Nf7+ Kf6 37. Rxh1 (37. Nxh8 $2 {loses.} f3+ 38. gxf3 g2 $19) 37... Re8+ 38. Kf3 Re3+ 39. Kxf4 Re4+ 40. Kf3 Kxf7 41. Rd1 $18) 35. d7 {[%emt 0:00:26] This costs White the game.} (35. Rxh5+ $17 Kxh5 36. Ke2) 35... Rhxd7 $19 {[%emt 0:00:36] Black is clearly winning.} 36. Nxd7 {[%emt 0:00:24]} Rxd7 {[%emt 0:00:04]} 37. Rxh5+ {[%emt 0:00:41]} Kxh5 {[%emt 0:00:04]} 38. Re5 {[%emt 0:00:29]} Kg4 {[%emt 0:00:40] aiming for ...Rd1+.} 39. Rxc5 {[%emt 0:00:29]} Rd1+ {[%emt 0:00:14]} 40. Ke2 {[%emt 0:00:05]} Rg1 {[%emt 0:00:04] Weighted Error Value: White=0.61/Black=0.09 (flawless)} 0-1